[Event "Marshall CC U2400 03-2025"]
[Site "New York"]
[Date "2025.03.22"]
[Round "2.1"]
[White "Scott, Harold"]
[Black "Muthukumar, Haari"]
[Result "0-1"]
[Annotator "TA"]
[ECO "A46"]
[WhiteElo "1898"]
[BlackElo "2202"]
[PlyCount "54"]
[EventDate "2025.03.20"]
[EventType "swiss"]
[EventCountry "USA"]
[SourceTitle "playchess.com"]
[Source "ChessBase"]
[SourceQuality "1"]
[TimeControl "5400+30"]

{[%evp 15,54,-5,0,-15,-10,-2,0,-24,-14,-36,-26,-51,-51,-43,-62,-108,-122,-509,-509,-499,-398,-346,-344,-288,-219,-230,-226,-206,-248,-365,-258,-355,-356,-377,-380,-536,-532,-1086,-1083,-1331,-1041]} 1. d4 {[%emt 0:00:07]} e6 {[%emt 0:00:06]} 2. Nf3 {[%emt 0:00:06]} Nf6 {[%emt 0:00:29]} 3. g3 {[%emt 0:00:20]} b5 {[%emt 0:01:46]} 4. Bg2 {[%emt 0:00:30]} Bb7 {[%emt 0:00:03]} 5. O-O {[%emt 0:00:11]} c5 {[%emt 0:04:57]} 6. c3 {[%emt 0:01:30]} cxd4 {[%emt 0:01:57]} 7. cxd4 {[%emt 0:01:33]} Be7 {[%emt 0:00:58]} 8. Bf4 {[%emt 0:04:16]} O-O {[%emt 0:00:50]} 9. Qb3 $146 {[%emt 0:04:52] A46: 1 d4 Nf6 2 Nf3 e6: Torre, London and Colle Systems.} (9. Nbd2 d6 10. Rc1 Nbd7 11. Qc2 Nb6 12. e4 Rc8 13. Qd3 a6 14. b3 d5 15. e5 Ne4 16. h4 h6 {0-1 Tokhirjonova,G (2378)-Shubin,K (2441) Titled Tuesday intern op 17th Nov blitz 2020 (8)}) 9... a6 {[%emt 0:06:02]} 10. Nc3 {[%emt 0:04:37]} Nc6 {[%emt 0:01:42][%cal Bb8c6,Bc6a5,Ba5c4,Bc4b2][%mdl 32]} 11. Rac1 {[%emt 0:03:21] The position is equal.} Rc8 {[%emt 0:02:20]} 12. Qd1 {[%emt 0:05:25]} Na5 {[%emt 0:05:09]} 13. Ne5 {[%emt 0:02:44]} Bxg2 {[%emt 0:04:11]} 14. Kxg2 {[%emt 0:00:12]} Qb6 {[%emt 0:03:10]} 15. f3 {[%emt 0:04:45]} (15. Bg5 $15) 15... d6 $17 {[%emt 0:03:04]} 16. Bg5 $2 {[%emt 0:00:44][%mdl 8192] This costs White the game.} dxe5 $19 {[%emt 0:09:00]} 17. dxe5 {[%emt 0:00:51] [#]} Nc4 $1 {[%emt 0:00:32]} 18. exf6 {[%emt 0:11:31]} Bxf6 {[%emt 0:00:17]} 19. Bf4 {[%emt 0:00:17]} Nxb2 {[%emt 0:04:25]} 20. Qb3 {[%emt 0:00:45]} Nc4 {[%emt 0:00:46]} 21. Ne4 {[%emt 0:02:27]} Bd4 {[%emt 0:02:07]} 22. Qd3 {[%emt 0:06:36]} (22. Nd2 $142 Qc6 (22... Ne3+ $2 23. Bxe3 Bxe3 24. Rcd1 $19) 23. Nxc4 bxc4 24. Qb4) 22... Rcd8 {[%emt 0:04:33] and ...f5 should not be overlooked} 23. Qb1 {[%emt 0:10:18]} Be3 {[%emt 0:04:12]} 24. Ng5 {[%emt 0:07:53][%csl Gg5][%cal Rb1h7] [#]} g6 {[%emt 0:00:18] Active counter play!} 25. Kh1 {[%emt 0:10:52]} (25. Rfe1 {was worth a try.}) 25... Bxf4 {[%emt 0:00:45] Black is clearly winning.} 26. Ne4 {[%emt 0:02:10]} Bxc1 {[%emt 0:00:53]} 27. Rxc1 {[%emt 0:00:04]} Qd4 {[%emt 0:00:22] Weighted Error Value: White=1.13/Black=0.18 (very precise)   Loses game:     	White=1     	---        Mistake:       	White=3     	---        Inaccurate:     	White=2     	---        OK:         	White=6     	Black=8      Best:        	---       	Black=3} 0-1

[Event "Marshall CC U2400 03-2025"]
[Site "New York"]
[Date "2025.03.22"]
[Round "2.2"]
[White "Levin, Anthony"]
[Black "Paruchuri, Naveen"]
[Result "1/2-1/2"]
[Annotator "TA"]
[ECO "E00"]
[WhiteElo "1990"]
[BlackElo "1847"]
[PlyCount "214"]
[EventDate "2025.03.20"]
[EventType "swiss"]
[EventCountry "USA"]
[SourceTitle "playchess.com"]
[Source "ChessBase"]
[SourceQuality "1"]
[TimeControl "5400+30"]

{[%evp 9,214,44,40,47,50,45,62,64,58,57,66,74,69,60,61,53,52,28,159,45,94,89,83,70,89,82,115,110,113,106,119,118,135,91,95,91,95,105,99,102,104,86,103,94,111,97,118,118,125,110,156,103,105,100,102,107,118,90,126,85,118,85,85,85,81,28,28,28,28,-49,0,0,109,59,71,44,44,45,51,53,56,43,115,0,65,0,111,62,73,51,91,0,15,28,57,55,73,0,0,0,8,7,14,0,30,0,0,0,0,0,0,0,0,0,0,0,0,0,0,0,0,0,0,0,0,0,0,0,0,0,0,0,0,0,0,0,0,0,0,0,0,0,0,0,0,0,0,0,0,0,0,-37,-37,-37,-37,-37,-37,-37,-37,-37,0,0,0,0,0,0,0,0,0,0,-3,-19,-19,-19,0,0,0,0,0,0,0,0,0,0,0,0,0,0,0,0,0,0,0,0,0,0,0,0,0,0,0,0,0,0,0,-8,-8]} 1. d4 {[%emt 0:08:21]} Nf6 {[%emt 0:02:41][%cal Bg8f6,Bf6e4,Be4d2][%mdl 32]} 2. c4 {[%emt 0:00:05]} e6 {[%emt 0:00:07]} 3. g3 {[%emt 0:00:07]} Bb4+ {[%emt 0:00:25]} 4. Nd2 {[%emt 0:01:25]} Ne4 {[%emt 0:06:01]} 5. Bg2 {[%emt 0:01:21]} Nxd2 {[%emt 0:01:23]} 6. Bxd2 {[%emt 0:00:04] E00: Catalan Bogo-Indian (3 g3 Bb4+).} Bxd2+ {[%emt 0:00:23]} 7. Qxd2 {[%emt 0:00:04]} d5 {[%emt 0:00:22]} 8. Nf3 {[%emt 0:05:56] White is slightly better.} O-O {[%emt 0:01:31]} 9. Rc1 {[%emt 0:00:10]} b6 {[%emt 0:03:07]} 10. cxd5 {[%emt 0:02:45]} exd5 {[%emt 0:00:11]} 11. O-O {[%emt 0:00:57]} Bb7 {[%emt 0:01:08]} 12. Qf4 $146 {[%emt 0:05:30]} (12. Qc2 c6 13. Ne5 Qd6 14. e4 f6 15. Ng4 dxe4 16. Bxe4 h5 17. Bh7+ Kh8 18. Ne3 {1-0 Zhang,X (2259)-Xu,Y (2083) Shaoxing (Women) op 2019 (7)}) 12... Na6 {[%emt 0:00:54]} 13. Ne5 {[%emt 0:07:37]} Qd6 {[%emt 0:01:31]} (13... Qe7 $11) 14. Nd3 {[%emt 0:05:05] White has more active pieces.} (14. Nc6 $1 $16) 14... Qxf4 {[%emt 0:01:24]} (14... Qd7 $14) 15. Nxf4 {[%emt 0:01:33]} Rfd8 {[%emt 0:00:53]} 16. Rfd1 {[%emt 0:00:16]} Rd6 {[%emt 0:01:05]} 17. e3 {[%emt 0:01:53]} Rad8 {[%emt 0:00:55]} 18. Bf1 {[%emt 0:00:41]} c6 {[%emt 0:04:03]} 19. Rc3 {[%emt 0:01:22][%cal Bc1c3,Bc3a3,Ba3a5][%mdl 32]} Nc7 {[%emt 0:01:10]} 20. b4 {[%emt 0:02:37]} Ba6 {[%emt 0:04:42]} 21. Nd3 {[%emt 0:04:11]} f6 {[%emt 0:06:28]} 22. Rdc1 {[%emt 0:01:10][%cal Bd1c1,Bc1c3,Bc3a3][%mdl 32]} Bc4 {[%emt 0:00:30][%cal Oc7b5]} 23. Nb2 {[%emt 0:02:26]} b5 {[%emt 0:00:18]} 24. Ra3 {[%emt 0:01:38]} Ra8 {[%emt 0:01:20]} 25. Ra5 {[%emt 0:02:08]} a6 {[%emt 0:02:20]} 26. Rc3 {[%emt 0:05:38]} Rdd8 {[%emt 0:03:40]} 27. Nd3 {[%emt 0:04:39]} Bxd3 {[%emt 0:08:09]} 28. Bxd3 {[%emt 0:00:05]} Rd6 {[%emt 0:47:49]} 29. a4 {[%emt 0:06:33]} g6 {[%emt 0:00:00]} ({Black should play} 29... Kf7 30. axb5 (30. Bxh7 $2 g6 $19) 30... axb5) 30. Ra3 {[%emt 0:09:40]} (30. axb5 $142 Nxb5 31. Rc2) 30... Rb8 $16 {[%emt 0:00:00]} 31. axb5 {[%emt 0:01:49]} cxb5 {[%emt 0:00:00]} 32. Rc3 {[%emt 0:00:26]} Ne6 {[%emt 0:00:00]} 33. Ra1 {[%emt 0:02:17]} Kf7 {[%emt 0:00:00]} 34. Rac1 {[%emt 0:00:28]} Ke7 {[%emt 0:00:00]} 35. h4 {[%emt 0:02:33]} f5 {[%emt 0:00:00]} 36. Kg2 {[%emt 0:02:00]} h5 {[%emt 0:00:00]} 37. Rc8 {[%emt 0:01:35]} (37. Bc2 $16) 37... Rxc8 $1 $11 {[%emt 0:00:00]} 38. Rxc8 {[%emt 0:00:02][%mdl 4096] Endgame KRB-KRN} Nd8 {[%emt 0:00:00]} 39. Ra8 {[%emt 0:01:08]} (39. Rc7+ $11 Kf6 40. Ra7) 39... Rb6 {[%emt 0:00:00]} (39... Kd7 $1 $15 {should be considered.}) 40. Ra7+ {[%emt 0:01:40]} Nb7 {[%emt 0:00:00]} (40... Ke8 $1 $11) 41. Be2 {[%emt 0:01:42]} (41. Bb1 $16) 41... Ke6 $14 {[%emt 0:00:00]} 42. Bf3 {[%emt 0:01:19]} Nd6 {[%emt 0:00:00]} 43. Rg7 {[%emt 0:00:21]} Kf6 {[%emt 0:00:00]} 44. Rc7 {[%emt 0:01:16]} Ne4 {[%emt 0:00:00]} 45. Bd1 {[%emt 0:01:17]} Nd6 {[%emt 0:00:00] [#]} (45... Nd2 $14) 46. Bf3 {[%emt 0:01:20]} ({Better is} 46. Kf3 $1 $16) 46... Ne4 $1 {[%emt 0:00:00]} 47. Bd1 {[%emt 0:00:05]} (47. Bxe4 $14 dxe4 48. f3) 47... Nd6 $16 {[%emt 0:00:00] [#]} 48. Bb3 {[%emt 0:00:25]} (48. Kf3 $1 $16) 48... Nc4 $1 $14 {[%emt 0:00:00]} 49. Rc5 {[%emt 0:01:18]} Ke6 {[%emt 0:00:00]} 50. Rc8 {[%emt 0:00:32]} (50. Ba2 $16) 50... Kd7 {[%emt 0:00:00]} 51. Rg8 {[%emt 0:00:18]} Ke7 {[%emt 0:00:00]} 52. Rg7+ {[%emt 0:00:15]} Kf6 {[%emt 0:00:00]} 53. Ra7 {[%emt 0:00:21]} (53. Rc7 $16) 53... Rc6 $11 {[%emt 0:00:09]} 54. Ra8 {[%emt 0:01:03]} Ke7 {[%emt 0:00:38]} 55. Bd1 {[%emt 0:00:36]} Nd6 {[%emt 0:00:38]} 56. Bb3 {[%emt 0:00:36]} Nc4 {[%emt 0:00:04]} 57. Ba2 {[%emt 0:00:20]} Nxe3+ $1 {[%emt 0:13:01]} 58. fxe3 {[%emt 0:00:12] KRB-KR} Rc2+ {[%emt 0:00:00]} 59. Kf3 {[%emt 0:00:03]} Rxa2 {[%emt 0:01:00] KR-KR. Black is a pawn up.} 60. Rg8 {[%emt 0:00:17]} Kf6 {[%emt 0:00:00]} 61. Rd8 {[%emt 0:00:09]} Ke6 {[%emt 0:00:00]} 62. Rg8 {[%emt 0:00:21]} Kf7 {[%emt 0:00:00]} 63. Rd8 {[%emt 0:00:03]} Ra4 {[%emt 0:00:00]} 64. Rd6 {[%emt 0:00:04]} Rxb4 {[%emt 0:00:00]} 65. Rxa6 {[%emt 0:00:04]} Rb1 {[%emt 0:00:00]} 66. Rd6 {[%emt 0:01:18]} b4 {[%emt 0:00:00]} 67. Rxd5 {[%emt 0:00:04]} b3 {[%emt 0:00:00]} 68. Rb5 {[%emt 0:00:38]} b2 {[%emt 0:00:00]} 69. Kg2 {[%emt 0:00:20] Inhibits Rf1.} Ke6 {[%emt 0:00:00]} 70. Kh2 {[%emt 0:02:25]} Kd6 {[%emt 0:00:00]} 71. d5 {[%emt 0:00:03]} Ke5 {[%emt 0:00:00]} 72. Kg2 {[%emt 0:00:11]} Ke4 {[%emt 0:00:00]} 73. d6 {[%emt 0:01:01]} Rd1 {[%emt 0:01:31]} 74. Rxb2 {[%emt 0:00:03]} Kxe3 {[%emt 0:00:29]} 75. Rb6 {[%emt 0:02:38]} Rd2+ {[%emt 0:01:30]} 76. Kh3 {[%emt 0:00:21]} Kf3 {[%emt 0:00:35]} 77. Ra6 {[%emt 0:01:23]} Rd1 {[%emt 0:00:21][%cal Rd1h1]} 78. Ra3+ {[%emt 0:00:26]} Kf2 {[%emt 0:00:34][%cal Rd1h1]} 79. Ra2+ {[%emt 0:00:33]} Kg1 {[%emt 0:00:59]} 80. Rg2+ {[%emt 0:02:19]} Kf1 {[%emt 0:00:19]} 81. Ra2 {[%emt 0:00:02]} Rxd6 {[%emt 0:00:27]} 82. Ra1+ {[%emt 0:00:06]} Kf2 {[%emt 0:00:06]} 83. Ra2+ {[%emt 0:00:04]} Ke3 {[%emt 0:00:14]} 84. Ra3+ {[%emt 0:00:02]} Rd3 {[%emt 0:01:12]} 85. Ra6 {[%emt 0:00:17] The position is equal.} Kf2 {[%emt 0:01:24]} 86. Ra2+ {[%emt 0:00:15]} Kf3 {[%emt 0:00:07]} 87. Ra6 {[%emt 0:01:01]} Kf2 {[%emt 0:00:35]} 88. Ra2+ {[%emt 0:00:03]} Ke3 {[%emt 0:00:05]} 89. Ra6 {[%emt 0:00:55]} f4 {[%emt 0:00:20]} 90. gxf4 {[%emt 0:00:57]} Kxf4+ {[%emt 0:00:23]} 91. Kh2 {[%emt 0:00:12]} Kg4 {[%emt 0:00:43] White must now prevent ...Rh3+.} 92. Rxg6+ {[%emt 0:00:05]} Kxh4 {[%emt 0:00:12]} 93. Rg8 {[%emt 0:00:15]} Rd2+ {[%emt 0:00:12]} 94. Rg2 {[%emt 0:00:39]} Rd4 {[%emt 0:00:25]} 95. Rg8 {[%emt 0:00:20]} Rd3 {[%emt 0:00:22]} 96. Rg7 {[%emt 0:00:39]} Rh3+ {[%emt 0:00:21]} 97. Kg2 {[%emt 0:00:06]} Ra3 {[%emt 0:00:34]} 98. Kh2 {[%emt 0:00:04]} Ra2+ {[%emt 0:00:08]} 99. Rg2 {[%emt 0:00:04]} Ra4 {[%emt 0:00:05]} 100. Rg8 {[%emt 0:00:05]} Rg4 {[%emt 0:00:04]} 101. Ra8 {[%emt 0:00:08]} Kg5 {[%emt 0:00:32]} 102. Rg8+ {[%emt 0:00:26]} Kf6 {[%emt 0:00:17]} 103. Rf8+ {[%emt 0:00:43]} Kg7 {[%emt 0:00:20]} 104. Ra8 {[%emt 0:00:04]} Re4 {[%emt 0:00:17]} 105. Ra6 {[%emt 0:00:08]} Rf4 {[%emt 0:00:09]} 106. Kh3 {[%emt 0:00:06]} Rf6 {[%emt 0:00:05]} 107. Rxf6 {[%emt 0:00:09]} Kxf6 {[%emt 0:00:07] Weighted Error Value: White=0.23 (precise) /Black=0.18 (very precise)   Mistake:       	White=10    	Black=6      Inaccurate:     	White=5     	Black=6      OK:         	White=47    	Black=25     Best:        	White=3     	Black=4      Strong:       	---       	Black=4} 1/2-1/2

[Event "Marshall CC U2400 03-2025"]
[Site "New York"]
[Date "2025.03.22"]
[Round "2.3"]
[White "Lee, Rohan"]
[Black "Goel, Raben"]
[Result "1/2-1/2"]
[Annotator "TA"]
[ECO "A05"]
[WhiteElo "2003"]
[BlackElo "1770"]
[PlyCount "97"]
[EventDate "2025.03.20"]
[EventType "swiss"]
[EventCountry "USA"]
[SourceTitle "playchess.com"]
[Source "ChessBase"]
[SourceQuality "1"]
[TimeControl "5400+30"]

{[%evp 10,97,8,0,10,7,2,-10,0,0,1,-2,0,0,0,0,8,9,19,-16,-28,-22,-18,-22,-16,-25,-37,-64,-31,-49,-46,-51,-40,-91,-56,-170,-165,-212,-29,-72,-56,-60,-63,-78,-49,-77,0,0,139,117,820,837,825,820,2483,957,932,641,906,819,809,729,2252,1388,1508,1508,1476,1383,1271,1223,1128,958,6684,5632,5014,8,8,8,8,8,8,0,0,0,0,-8,8,8,8,8]} 1. Nf3 {[%emt 0:00:22]} Nf6 {[%emt 0:00:06]} 2. g3 {[%emt 0:00:13]} g6 {[%emt 0:00:08]} 3. b4 {[%emt 0:00:05]} Bg7 {[%emt 0:00:39]} 4. Bb2 {[%emt 0:00:08]} d6 {[%emt 0:00:08]} 5. Bg2 {[%emt 0:00:09]} O-O {[%emt 0:00:12]} 6. O-O $1 {[%emt 0:00:12]} Nbd7 {[%emt 0:00:45] A05: Réti Opening: 1 Nf3 Nf6.} 7. d3 {[%emt 0:00:26]} c5 {[%emt 0:00:45]} 8. b5 $146 {[%emt 0:06:00]} (8. bxc5 Nxc5 9. c4 Bd7 10. Nbd2 Rc8 11. Nb3 Na4 12. Bd4 e5 13. Be3 Nc3 14. Qc2 {0-1 Cox,T (2141)-Badacsonyi,S Checkmate Covid Rematch blitz 2021}) 8... a6 {[%emt 0:14:39]} 9. bxa6 {[%emt 0:02:30]} Rxa6 {[%emt 0:02:42]} 10. c4 {[%emt 0:01:01]} Nb8 {[%emt 0:18:22]} 11. Nc3 {[%emt 0:03:48]} Nc6 {[%emt 0:03:28]} 12. Nb5 {[%emt 0:00:47]} Bd7 {[%emt 0:20:50]} 13. Qc1 {[%emt 0:08:34]} Qc8 {[%emt 0:01:56]} 14. Bc3 {[%emt 0:15:29]} Bh3 {[%emt 0:01:51]} 15. Qb2 {[%emt 0:01:06][%cal Ob5d6]} Bxg2 {[%emt 0:07:23]} 16. Kxg2 {[%emt 0:00:03][%cal Ob5d6]} Qd7 {[%emt 0:02:41]} 17. Nd2 {[%emt 0:03:44]} e5 {[%emt 0:08:47]} 18. e4 {[%emt 0:24:50]} Bh6 {[%emt 0:04:25]} 19. Nf3 {[%emt 0:04:44]} Nh5 {[%emt 0:01:25]} 20. Bd2 {[%emt 0:08:14]} Bg7 {[%emt 0:00:48][%cal Oh5f4]} 21. Qc1 {[%emt 0:03:56]} (21. h3 $15) 21... f5 {[%emt 0:01:58]} 22. Nc3 {[%emt 0:01:58]} (22. Qd1 $15) 22... fxe4 $1 $19 {[%emt 0:01:13]} 23. Nxe4 {[%emt 0:01:00] [#]} (23. dxe4 {was worth a try.} Nf4+ 24. Kg1) 23... Qg4 $2 {[%emt 0:02:55]} (23... Rxf3 $1 $19 24. Kxf3 Qh3) 24. Qd1 {[%emt 0:00:34][%cal Oh2h3] Successful Defense White} Nf4+ {[%emt 0:00:41]} 25. Bxf4 {[%emt 0:03:16]} exf4 {[%emt 0:00:10]} 26. Rb1 {[%emt 0:00:07][%cal Ba1b1,Bb1b7,Bb7b8][%mdl 32]} fxg3 {[%emt 0:00:52]} (26... Rxa2 $6 27. Rxb7 Ra6 28. h3 $14 (28. Nxd6 fxg3 29. hxg3 Nd8 $15)) 27. hxg3 {[%emt 0:00:19]} Rxa2 {[%emt 0:04:11]} (27... Nb4 $17) 28. Rxb7 $11 {[%emt 0:00:28][%cal Of3g5]} Kh8 {[%emt 0:00:00]} (28... Nb4 $11) 29. Nfg5 $1 $16 {[%emt 0:01:36] Dancing on a razor blade.} ({Much worse is} 29. Nxd6 $6 Ne5 (29... Ra1 30. Qe2 $19) 30. Nxe5 (30. Nd2 Rxd2 31. Qxd2 Qf3+ 32. Kh3 Qh5+ 33. Kg2 Nf3 $19) 30... Raxf2+ 31. Rxf2 Qxd1 $11) 29... Raxf2+ $2 {[%emt 0:00:24][%mdl 8192]} 30. Rxf2 $18 {[%emt 0:02:41]} Rxf2+ {[%emt 0:00:25]} 31. Nxf2 {[%emt 0:00:07]} Qxg5 {[%emt 0:00:12]} 32. Qf3 {[%emt 0:00:53]} (32. Qa4 $142 h5 33. Qxc6) 32... Nd8 {[%emt 0:00:35] Black is weak on the light squares} 33. Rb8 {[%emt 0:00:27] and Qf7 would now be decisive} h5 {[%emt 0:00:37]} 34. Ne4 {[%emt 0:02:12]} Qe7 {[%emt 0:00:12]} 35. Qf4 {[%emt 0:01:43]} d5 {[%emt 0:00:55]} 36. Qg5 {[%emt 0:00:57]} Qxg5 {[%emt 0:00:35]} 37. Nxg5 {[%emt 0:00:02][%mdl 4096] Endgame KRN-KBN} Bf6 {[%emt 0:00:03]} 38. Nf7+ {[%emt 0:00:23]} Kg7 {[%emt 0:00:05]} 39. Nxd8 {[%emt 0:00:05]} dxc4 {[%emt 0:00:04]} 40. dxc4 {[%emt 0:00:11]} Kh6 {[%emt 0:00:09]} 41. Ne6 {[%emt 0:00:19]} Be5 {[%emt 0:00:14] [#]} 42. Nxc5 $2 {[%emt 0:00:12]} Bxb8 {[%emt 0:00:07] KB-KN. The position is equal.} 43. Na6 {[%emt 0:00:34]} Be5 {[%emt 0:01:21]} 44. c5 {[%emt 0:01:05]} Kg5 {[%emt 0:00:21]} 45. Kh3 {[%emt 0:00:47]} Kf6 {[%emt 0:00:36]} 46. c6 {[%emt 0:00:51]} Ke7 {[%emt 0:00:23]} 47. Nb4 {[%emt 0:00:55]} Kd6 {[%emt 0:01:07]} 48. Nd3 {[%emt 0:00:47]} Bxg3 {[%emt 0:00:14]} 49. Kxg3 {[%emt 0:04:10] White used his chance.   Weighted Error Value: White=0.65/Black=0.81  Loses game:     	---       	Black=1      Missed win:     	---       	Black=1      Mistake:       	White=3     	Black=2      Inaccurate:     	White=3     	Black=3      OK:         	White=11    	Black=10     Best:        	White=2     	Black=1      Strong:       	---       	Black=1} 1/2-1/2

[Event "Marshall CC U2400 03-2025"]
[Site "New York"]
[Date "2025.03.22"]
[Round "2.4"]
[White "Farzaneh-Far, Marcus"]
[Black "Miller, Rachel"]
[Result "0-1"]
[Annotator "TA"]
[ECO "C99"]
[WhiteElo "1664"]
[BlackElo "1956"]
[PlyCount "120"]
[EventDate "2025.03.20"]
[EventType "swiss"]
[EventCountry "USA"]
[SourceTitle "playchess.com"]
[Source "ChessBase"]
[SourceQuality "1"]
[TimeControl "5400+30"]

{[%evp 33,120,30,50,43,53,53,62,35,84,54,60,66,130,58,84,33,132,128,138,175,115,155,397,412,424,414,483,427,483,445,479,477,436,199,193,143,210,118,188,-8,-7,-18,-20,-70,-35,-43,-33,-88,-108,-139,-111,-115,-108,-115,-29,-151,-143,-142,-119,-160,-118,-219,-216,-234,-215,-222,-208,-220,-213,-221,-198,-226,-211,-276,-263,-245,-224,-399,-399,-380,-385,-633,-627,-620,-555,-1444,-1419,-4694,-1519]} 1. e4 {[%emt 0:02:35]} e5 {[%emt 0:09:29]} 2. Nf3 {[%emt 0:00:18]} Nc6 {[%emt 0:00:08]} 3. Bb5 {[%emt 0:00:10]} a6 {[%emt 0:00:05]} 4. Ba4 {[%emt 0:00:09]} Nf6 {[%emt 0:00:07]} 5. O-O {[%emt 0:00:15]} Be7 {[%emt 0:00:04]} 6. Re1 {[%emt 0:00:15]} b5 {[%emt 0:00:02]} 7. Bb3 {[%emt 0:00:09]} d6 {[%emt 0:00:13]} 8. c3 {[%emt 0:00:18]} O-O {[%emt 0:00:05]} 9. h3 {[%emt 0:00:21]} Na5 {[%emt 0:00:04]} 10. Bc2 {[%emt 0:00:08]} c5 {[%emt 0:00:03]} 11. d4 {[%emt 0:00:11]} Qc7 {[%emt 0:00:05]} 12. Nbd2 {[%emt 0:00:30]} cxd4 {[%emt 0:02:04]} 13. cxd4 {[%emt 0:00:13]} Nc6 {[%emt 0:00:12]} 14. Nb3 {[%emt 0:01:15]} a5 {[%emt 0:01:07][%cal Ba6a5,Ba5a4][%mdl 32]} 15. Be3 {[%emt 0:00:38]} a4 {[%emt 0:00:23]} 16. Nbd2 {[%emt 0:00:33]} Nb4 {[%emt 0:04:04]} 17. Bb1 {[%emt 0:08:28]} Bd7 {[%emt 0:04:05]} 18. a3 {[%emt 0:15:36] C99: Closed Ruy Lopez: Chigorin Defence: 11 d4 Qc7 12 Nbd2 cxd4.} Na6 {[%emt 0:07:22]} 19. Bd3 {[%emt 0:04:23]} Rfc8 {[%emt 0:19:06]} 20. Rc1 {[%emt 0:13:01] White is slightly better.} Qb8 {[%emt 0:00:56]} (20... Qxc1 $14 21. Qxc1 Rxc1 22. Rxc1 exd4 23. Nxd4 Nc5 24. Bxb5 Bxb5 25. Nxb5 Ncxe4) 21. Qe2 {[%emt 0:06:14]} Rxc1 {[%emt 0:04:47]} 22. Rxc1 {[%emt 0:00:13]} exd4 $146 {[%emt 0:00:04]} (22... h6 $14) ({Predecessor:} 22... Bd8 23. Nb1 Ba5 24. Nc3 Bxc3 25. bxc3 Qe8 26. Bg5 Kh8 27. c4 exd4 28. Bxf6 gxf6 29. cxb5 {½-½ Terentev,M (2013)-Royset,P (2234) Chigorin Memorial 23rd 2015 (3)}) 23. Bxd4 {[%emt 0:14:13]} (23. Nxd4 $16 {[%cal Rd3b5]} Nc5 24. Bxb5 (24. Nxb5 $2 Nxd3 25. Qxd3 Qxb5 $19)) 23... Nc5 {[%emt 0:02:31]} 24. Bb1 {[%emt 0:08:56]} (24. Bxc5 $1 $16 dxc5 25. e5) 24... b4 {[%emt 0:10:12]} (24... Nh5 $14) 25. e5 $16 {[%emt 0:01:33]} Bb5 {[%emt 0:06:21][%cal Bd7b5,Bb5d3,Bd3g6][%mdl 32] [#]} 26. Qe1 {[%emt 0:04:06]} Nfd7 {[%emt 0:04:25]} 27. axb4 {[%emt 0:00:55]} Nd3 {[%emt 0:03:20]} (27... Ne6 $16) 28. Bxd3 $18 {[%emt 0:00:13]} Bxd3 {[%emt 0:00:05]} 29. e6 {[%emt 0:00:31]} Nf8 {[%emt 0:00:59]} 30. exf7+ {[%emt 0:00:46]} Kxf7 {[%emt 0:00:38]} 31. Qe3 {[%emt 0:01:58]} Bg6 {[%emt 0:03:51] [#]} 32. Bxg7 $1 {[%emt 0:01:56][%mdl 512]} Ne6 {[%emt 0:01:20]} (32... Qd8 33. Bc3) 33. Re1 {[%emt 0:01:46]} (33. Bc3 $142) 33... Kxg7 {[%emt 0:03:47]} 34. Qxe6 {[%emt 0:00:22]} Bf6 {[%emt 0:00:17]} 35. Nc4 {[%emt 0:06:49]} (35. Ne4 $18 Bxb2 36. Nxd6) 35... Qc8 {[%emt 0:06:50]} (35... Qxb4 $16 36. Nxd6 (36. Qxd6 $2 Qxc4 37. Ne5 Qc8 $19) 36... Bxb2) 36. Nfd2 $2 {[%emt 0:04:34]} (36. Nxd6 Qxe6 37. Rxe6 Bxb2 $17) (36. Qd5 $18 {[%cal Oc4b6] Strongly threatening Nb6!.} Qg8 37. Qb7+ Kh8 38. Qc6 (38. Nxd6 Bxb2 39. Ng5 Rf8 $16)) 36... Qxe6 $11 {[%emt 0:00:58]} 37. Rxe6 {[%emt 0:00:02]} Bf7 {[%emt 0:01:50] A strong pair of Bishops.} 38. Re4 {[%emt 0:02:00]} (38. Rxf6 $11 Kxf6 39. Nxd6) 38... Bxc4 {[%emt 0:05:19]} (38... d5 $5 39. Rg4+ $8 Bg6 $14) 39. Nxc4 {[%emt 0:00:42][%cal Oc4b6]} Bxb2 $1 $15 {[%emt 0:02:42][%mdl 4096] Endgame KRB-KRN. White is a pawn up.} 40. Re2 {[%emt 0:01:44] [#]} ({White should play} 40. Nxb2 $15 a3 41. Nc4) 40... a3 $1 $17 {[%emt 0:00:00]} 41. Rxb2 {[%emt 0:00:12]} (41. Nxd6 $2 a2 42. Nf5+ Kf6 $19) 41... axb2 {[%emt 0:00:00]} ({Not} 41... a2 42. Rxa2 (42. Nxd6 $2 {loses.} a1=Q+ 43. Kh2 Qxb2 $19) 42... Rxa2 43. Nxd6 $11) 42. Nxb2 {[%emt 0:00:04] KR-KN} Ra1+ {[%emt 0:00:00]} 43. Kh2 {[%emt 0:00:04]} Rb1 {[%emt 0:00:00]} (43... Kf6 $17 44. Nd3 Ra3) 44. Nd3 {[%emt 0:00:10]} (44. Nc4 $1 $11) 44... Rb3 {[%emt 0:00:00]} 45. Nf4 {[%emt 0:00:32]} Rxb4 {[%emt 0:00:00]} 46. Nd5 {[%emt 0:00:34]} Rb3 {[%emt 0:01:00]} 47. Ne3 {[%emt 0:00:16]} (47. g4 $17) 47... Kf6 $19 {[%emt 0:00:18]} 48. Kg3 {[%emt 0:00:44]} d5 {[%emt 0:00:16]} 49. Kf4 {[%emt 0:00:11]} Rb4+ {[%emt 0:00:42]} 50. Kf3 {[%emt 0:00:08]} Ke5 {[%emt 0:00:06]} 51. Ke2 {[%emt 0:00:34]} Rb3 {[%emt 0:01:32]} 52. Ng4+ {[%emt 0:00:32]} Kd4 {[%emt 0:00:26]} 53. Nf6 {[%emt 0:00:31]} Rb2+ {[%emt 0:01:17]} 54. Kf3 {[%emt 0:00:10]} Rb7 {[%emt 0:00:39]} 55. Ke2 $2 {[%emt 0:00:59]} (55. g4) 55... Rf7 {[%emt 0:00:12]} 56. Ng4 {[%emt 0:00:12]} Kc3 {[%emt 0:00:17]} 57. Ne5 $2 {[%emt 0:01:08]} (57. Ne3 d4 58. Nd1+ Kc2 59. Ne3+ dxe3 60. Kxe3) 57... Re7 {[%emt 0:00:33] Black is clearly winning.} 58. f4 {[%emt 0:00:01]} d4 {[%emt 0:00:16] Threatens to win with ...d3+.} 59. g4 {[%emt 0:00:45]} d3+ {[%emt 0:00:13]} 60. Kd1 {[%emt 0:00:31]} Ra7 {[%emt 0:00:26] Never resign too early!   Weighted Error Value: White=0.74/Black=0.25 (precise)   Loses game:     	---       	Black=1      Missed win:     	White=1     	---        Mistake:       	White=10    	Black=5      Inaccurate:     	White=5     	Black=2      OK:         	White=15    	Black=16     Best:        	White=3     	Black=4      Strong:       	---       	Black=2} (60... Rb7 $142 61. Nxd3 Kxd3) 0-1